[Event "FIDE WSTC Open 50 2025"]
[Site "Prague"]
[Date "2025.02.20"]
[Round "4.13"]
[White "Svensson, Bengt"]
[Black "Polak, Tomas"]
[Result "0-1"]
[Annotator "TA"]
[ECO "B10"]
[WhiteElo "2297"]
[BlackElo "2463"]
[PlyCount "68"]
[EventDate "2025.02.17"]
[EventType "team-tourn"]
[EventCountry "CZE"]
[SourceTitle "playchess.com"]
[Source "ChessBase"]
[SourceQuality "1"]
[TimeControl "40/5400+30:1800+30"]

{[%evp 9,68,4,20,14,13,10,14,13,22,0,6,6,1,8,16,12,10,0,12,0,-4,-24,-13,-16,-21,-56,-47,-33,-62,-66,-66,-69,-64,-63,-56,-89,-87,-163,-122,-122,-88,-136,-104,-168,-158,-271,-270,-594,-596,-513,-498,-510,-473,-500,-496,-496,-492,-29997,-29996,-29997,-29998]} 1. e4 {[%emt 0:00:03]} c6 {[%emt 0:00:09]} 2. Nf3 {[%emt 0:00:22]} d5 {[%emt 0:00:13]} 3. exd5 {[%emt 0:00:46]} cxd5 {[%emt 0:00:09]} 4. Ne5 {[%emt 0:00:32]} Nc6 {[%emt 0:01:29]} 5. d4 {[%emt 0:00:37]} Nf6 {[%emt 0:03:16]} 6. Bb5 {[%emt 0:02:01] B10: Caro-Kann: 2 d3 and 2 c4.} Bd7 {[%emt 0:00:38]} 7. Nxd7 {[%emt 0:02:12]} Qxd7 {[%emt 0:00:07]} 8. c3 {[%emt 0:00:59] The position is equal.} e6 {[%emt 0:00:53]} 9. O-O {[%emt 0:00:56]} Bd6 {[%emt 0:02:51]} 10. Re1 {[%emt 0:05:30]} O-O {[%emt 0:07:23]} 11. Nd2 {[%emt 0:01:24][%cal Bb1d2,Bd2f3,Bf3e5][%mdl 32]} h6 {[%emt 0:05:17]} 12. Nf3 {[%emt 0:04:59]} Ne4 $146 {[%emt 0:01:20]} ({Predecessor:} 12... a6 13. Bd3 b5 14. Qe2 Qc7 15. h3 Bf4 16. Ne5 Bxc1 17. Raxc1 Nxe5 18. dxe5 Nd7 {1-0 Ambartsumova,K (2382)-Jeet,J (2279) Titled Tuesday intern op 15 Mar Late blitz 2022 (3)}) 13. c4 {[%emt 0:13:22]} a6 {[%emt 0:04:03]} 14. Ba4 {[%emt 0:06:31]} Rad8 {[%emt 0:03:08]} 15. Ne5 {[%emt 0:11:06]} Qc7 {[%emt 0:16:48]} 16. Bxc6 {[%emt 0:05:47]} bxc6 {[%emt 0:05:09]} 17. Qc2 {[%emt 0:03:55]} c5 {[%emt 0:08:54]} (17... Bxe5 18. dxe5 Nc5 (18... Qxe5 19. f3 $16) 19. b4 $14) 18. cxd5 {[%emt 0:03:07]} exd5 {[%emt 0:00:08]} (18... cxd4 $2 19. Qxe4 Rfe8 20. Bf4 $18 (20. Qxd4 exd5 21. Bf4 Re6 $18)) 19. Nf3 {[%emt 0:02:13]} c4 {[%emt 0:02:33]} 20. Bd2 {[%emt 0:04:02]} Rfe8 {[%emt 0:06:06]} 21. Bc3 {[%emt 0:01:28]} Re6 {[%emt 0:00:59] Black has more active pieces.} 22. Qa4 {[%emt 0:07:46]} Qb8 {[%emt 0:05:20]} 23. Qa5 {[%emt 0:03:46]} (23. Qc2 $17 {is a better defense.}) 23... Bc7 {[%emt 0:01:08]} 24. Qa4 {[%emt 0:00:17] Black has space advantage and is better} Rde8 {[%emt 0:06:34][%cal Oc7h2]} 25. h3 {[%emt 0:05:06]} (25. Qc2 $142) 25... Qc8 {[%emt 0:01:54]} 26. Rad1 {[%emt 0:02:16] [#]} (26. Ne5 $17) 26... Rg6 $1 $19 {[%emt 0:05:57][%cal Oc8h3] ...Qxh3! is the strong threat.} 27. Kf1 {[%emt 0:02:27] [#]} (27. Nh4 $17 Rf6 28. Ba5) 27... Rf6 $1 {[%emt 0:00:33][%cal Of6f3]} 28. Re3 $2 {[%emt 0:02:02] [#]} (28. Ne5 {is tougher.}) 28... Ng3+ $1 {[%emt 0:00:53][%mdl 512]} 29. Ke1 {[%emt 0:00:52]} Rxe3+ {[%emt 0:00:46]} 30. fxe3 {[%emt 0:00:01]} Ne4 {[%emt 0:03:07]} 31. Ke2 {[%emt 0:01:28] [#]} Rxf3 $1 {[%emt 0:03:17]} 32. gxf3 {[%emt 0:00:12]} Qxh3 $1 {[%emt 0:00:04] ( -> ...Qg2+)} 33. Rc1 {[%emt 0:05:45]} (33. Re1 $19 Qg2+ 34. Kd1 Nf2+ (34... Qxf3+ $2 35. Kc1 $19) 35. Kc1 Nd3+ (35... Qxf3 $2 36. Kb1 $19) 36. Kb1 Nxe1 (36... Qxf3 $2 37. Rd1 $19) 37. Qe8+ Kh7 38. Bxe1 Qxf3 39. a3) 33... Qg2+ {[%emt 0:00:33]} 34. Kd1 {[%emt 0:00:08]} Qf1+ {[%emt 0:00:22] Weighted Error Value: White=0.51/Black=0.08 (flawless)   Mistake:       	White=6     	---        Inaccurate:     	White=2     	---        OK:         	White=8     	Black=8      Best:        	White=2     	Black=1      Strong:       	---       	Black=2      Brilliant:      	---       	Black=1} 0-1

[Event "FIDE WSTC Open 50 2025"]
[Site "Prague"]
[Date "2025.02.20"]
[Round "4.17"]
[White "Davies, Nigel R"]
[Black "Haba, Petr"]
[Result "1/2-1/2"]
[Annotator "TA"]
[ECO "D27"]
[WhiteElo "2294"]
[BlackElo "2442"]
[PlyCount "29"]
[EventDate "2025.02.17"]
[EventType "team-tourn"]
[EventCountry "CZE"]
[SourceTitle "playchess.com"]
[Source "ChessBase"]
[SourceQuality "1"]
[TimeControl "40/5400+30:1800+30"]

{[%evp 15,28,24,31,10,3,0,7,6,23,0,0,0,14,0,0]} 1. Nf3 {[%emt 0:00:38]} d5 {[%emt 0:01:20]} 2. c4 {[%emt 0:03:23]} dxc4 {[%emt 0:00:27]} 3. e3 {[%emt 0:00:34]} Nf6 {[%emt 0:00:53]} 4. Bxc4 {[%emt 0:00:16]} e6 {[%emt 0:00:06]} 5. d4 {[%emt 0:00:35]} c5 {[%emt 0:00:26]} 6. O-O {[%emt 0:00:21]} a6 {[%emt 0:00:07]} 7. b3 {[%emt 0:03:31]} cxd4 {[%emt 0:06:20]} 8. Nxd4 {[%emt 0:01:58]} Bd6 {[%emt 0:00:56]} 9. Nf3 {[%emt 0:08:59] D27: Queen's Gambit Accepted: Classical main line: 7 e4!? and 7 a4.} O-O {[%emt 0:03:06]} 10. Bb2 {[%emt 0:07:04]} Nc6 {[%emt 0:03:28]} 11. Nbd2 {[%emt 0:05:31]} Qe7 $146 {[%emt 0:06:15]} ({Predecessor:} 11... b5 12. Bxf6 gxf6 13. Be2 Bb7 14. a4 Ne5 15. axb5 axb5 16. Rxa8 Qxa8 17. Bxb5 Nxf3+ 18. Nxf3 {½-½ Le,H (2041)-Guo,E (1752) Wch U16 Girls 2008 (1)}) 12. Rc1 {[%emt 0:14:04]} Rd8 {[%emt 0:04:49] The position is equal.} 13. Qc2 {[%emt 0:00:38]} Bd7 {[%emt 0:03:15]} 14. Ne4 {[%emt 0:03:22]} Nxe4 {[%emt 0:14:02]} 15. Qxe4 {[%emt 0:00:21] An uneventful encounter.   Weighted Error Value: White=0.10 (very precise) /Black=0.03 (flawless)   OK:         	White=2     	Black=3      Best:        	---       	Black=1} 1/2-1/2

[Event "FIDE WSTC Open 50 2025"]
[Site "Prague"]
[Date "2025.02.20"]
[Round "4.18"]
[White "Jirovsky, Milos"]
[Black "Dishman, Stephen"]
[Result "0-1"]
[Annotator "TA"]
[ECO "D02"]
[WhiteElo "2410"]
[BlackElo "2273"]
[PlyCount "60"]
[EventDate "2025.02.17"]
[EventType "team-tourn"]
[EventCountry "CZE"]
[SourceTitle "playchess.com"]
[Source "ChessBase"]
[SourceQuality "1"]
[TimeControl "40/5400+30:1800+30"]

{[%evp 14,60,0,0,0,-6,0,-10,-3,-3,0,-5,-4,-31,0,23,49,70,47,47,47,47,54,49,72,72,63,76,91,77,81,25,30,29,36,21,82,23,45,23,95,41,111,102,106,41,79,-29988,-29989]} 1. Nf3 {[%emt 0:01:32]} d5 {[%emt 0:00:06]} 2. d4 {[%emt 0:00:12]} Nf6 {[%emt 0:00:22]} 3. c4 {[%emt 0:00:13]} c6 {[%emt 0:00:23]} 4. Qb3 {[%emt 0:00:14]} e6 {[%emt 0:00:30]} 5. g3 {[%emt 0:00:17]} Be7 {[%emt 0:00:12]} 6. Bg2 {[%emt 0:00:09]} O-O {[%emt 0:00:19]} 7. O-O {[%emt 0:00:14]} Nbd7 {[%emt 0:00:07]} 8. Bf4 {[%emt 0:01:28]} a5 {[%emt 0:01:16] E07: Closed Catalan: Main Line (5 Nf3 0-0 6 0-0 Nbd7).} 9. Rc1 {[%emt 0:01:21]} Ne4 {[%emt 0:02:53]} 10. Nfd2 {[%emt 0:01:17]} g5 {[%emt 0:07:43] The position is equal.} 11. Nxe4 {[%emt 0:04:16]} gxf4 $146 {[%emt 0:01:04]} (11... a4 12. Qc3 dxe4 13. Bd2 f5 14. Qc2 Rf7 15. Nc3 Nb6 16. e3 e5 {½-½ Ingersol,H (2460)-Woelfelschneider,P (2355) WC-2017-S-00006}) 12. Ned2 {[%emt 0:00:28]} Bf6 {[%emt 0:04:01]} 13. Nf3 {[%emt 0:03:24]} fxg3 {[%emt 0:01:17]} ({Black should play} 13... dxc4 $15 14. Rxc4 e5) 14. hxg3 $11 {[%emt 0:00:13]} b5 {[%emt 0:05:27]} 15. cxb5 {[%emt 0:06:13]} cxb5 {[%emt 0:00:09]} 16. Nc3 {[%emt 0:00:11]} (16. Qxb5 Ba6 17. Qb3 Bxe2 $15) 16... b4 {[%emt 0:06:49]} 17. Na4 {[%emt 0:00:24]} Ba6 {[%emt 0:01:28]} 18. Bf1 {[%emt 0:01:16]} Rc8 {[%emt 0:03:33]} 19. e3 {[%emt 0:07:05]} Bxf1 {[%emt 0:10:35]} 20. Kxf1 {[%emt 0:00:17]} Nb6 {[%emt 0:09:26]} 21. Nc5 {[%emt 0:04:02]} Nc4 {[%emt 0:01:38][%cal Oc8c5]} 22. Rc2 {[%emt 0:04:57]} (22. Nd3 $1 $16) 22... Be7 {[%emt 0:04:27]} 23. Na4 {[%emt 0:02:58]} Qe8 {[%emt 0:04:17]} 24. Kg2 {[%emt 0:02:39]} f6 {[%emt 0:06:07] [#]} (24... f5 $11) 25. Rh1 {[%emt 0:04:11]} (25. e4 $1 $16) 25... Qg6 {[%emt 0:03:35][%cal Og6c2] and ...Qxc2! should not be overlooked} 26. Rcc1 {[%emt 0:00:28]} Rc7 {[%emt 0:04:03] [#]} (26... Bd6 $11 {keeps the balance.}) 27. Nb6 {[%emt 0:05:48]} (27. Qd1 $1 $16) 27... a4 {[%emt 0:01:39]} 28. Nxa4 $16 {[%emt 0:00:42] Excellent horsemanship.} ({Worse is} 28. Qxa4 Nxe3+ (28... Nxb6 29. Qa6 $17) 29. fxe3 Bd6 $17) 28... Rfc8 {[%emt 0:00:29]} 29. Rcf1 {[%emt 0:11:09]} ({Better is} 29. Rce1 $16) 29... Bd6 {[%emt 0:03:03]} 30. Qd1 $2 {[%emt 0:01:09][%mdl 8192] [#]} (30. Nc5 $16) 30... Nxe3+ $1 {[%mdl 512] Weighted Error Value: White=0.44/Black=0.21 (precise)   Loses game:     	White=1     	---        Mistake:       	White=4     	Black=4      Inaccurate:     	White=1     	Black=2      OK:         	White=6     	Black=7      Best:        	White=2     	---        Brilliant:      	---       	Black=1} 0-1

[Event "FIDE WSTC Open 50 2025"]
[Site "Prague"]
[Date "2025.02.20"]
[Round "4.23"]
[White "Kirkebo, Carl Peter"]
[Black "Schulz, Klaus-Juergen"]
[Result "0-1"]
[Annotator "TA"]
[ECO "A37"]
[WhiteElo "2148"]
[BlackElo "2345"]
[PlyCount "100"]
[EventDate "2025.02.17"]
[EventType "team-tourn"]
[EventCountry "CZE"]
[SourceTitle "playchess.com"]
[Source "ChessBase"]
[SourceQuality "1"]
[TimeControl "40/5400+30:1800+30"]

{[%evp 26,100,0,0,0,0,0,0,-2,-7,-8,-9,0,0,0,-78,-62,-143,-160,-158,-148,-275,-158,-171,-152,-183,-120,-125,-101,-134,-134,-169,-163,-150,-122,-116,-127,-117,-117,-117,-129,-129,-124,-131,-124,-235,-229,-239,-204,-467,-462,-455,-443,-522,-507,-592,-552,-6060,-6060,-5073,-5073,-29966,-5631,-29968,-29971,-29971,-29972,-29972,-29973,-29972,-29973,-29973,-29974,-29974,-29975,-29974,-29975]} 1. c4 {[%emt 0:00:09]} c5 {[%emt 0:04:24]} 2. Nf3 {[%emt 0:00:23]} Nc6 {[%emt 0:00:24]} 3. g3 {[%emt 0:01:00]} g6 {[%emt 0:01:15]} 4. Bg2 {[%emt 0:00:30]} Bg7 {[%emt 0:00:05]} 5. Nc3 {[%emt 0:00:54]} e5 {[%emt 0:03:53]} 6. d3 {[%emt 0:03:29]} Nge7 {[%emt 0:00:37]} 7. a3 {[%emt 0:02:22]} a5 {[%emt 0:00:34]} 8. Bd2 {[%emt 0:06:05]} O-O {[%emt 0:01:37]} 9. O-O {[%emt 0:01:40]} d6 {[%emt 0:03:34]} 10. Rb1 {[%emt 0:03:58]} Rb8 {[%emt 0:24:09]} 11. Ne1 {[%emt 0:09:40]} Be6 {[%emt 0:04:21]} 12. Nc2 {[%emt 0:05:22]} d5 {[%emt 0:16:06]} 13. cxd5 {[%emt 0:03:13]} Nxd5 {[%emt 0:00:03]} 14. Ne4 {[%emt 0:05:45]} b6 {[%emt 0:00:40] A37: Symmetrical English vs ...g6: 4 Bg2 Bg7 5 Nf3.} 15. b4 {[%emt 0:30:32]} cxb4 {[%emt 0:08:38]} 16. axb4 {[%emt 0:00:12]} axb4 {[%emt 0:00:53] The position is equal.} 17. Nxb4 {[%emt 0:00:29]} Ndxb4 {[%emt 0:00:24]} 18. Bxb4 {[%emt 0:00:40]} Nxb4 {[%emt 0:00:35]} 19. Rxb4 {[%emt 0:00:07]} f5 {[%emt 0:00:29]} 20. Nd2 {[%emt 0:01:06] [#] Not much happening anymore} (20. Nc3 $11) 20... e4 $1 $17 {[%emt 0:02:12]} 21. Nc4 {[%emt 0:04:00]} (21. dxe4 $2 Bc3 22. Rc4 Qxd2 $19) ({White should try} 21. Rb5 $15) 21... b5 $36 {[%emt 0:02:27][%mdl 2048] White is under strong pressure.} 22. Ne3 {[%emt 0:02:45]} Qa5 {[%emt 0:01:26]} 23. Qd2 $146 {[%emt 0:02:47]} (23. Qe1 $17 {keeps fighting.}) (23. Rb1 Rfd8 24. Rc1 Bc3 25. Qc2 Rbc8 26. Qb1 Ba2 27. Qc2 b4 28. Nc4 Rxc4 29. dxc4 {0-1 Rohmeiss,R (2153)-Paehtz,T (2213) Thueringen-ch MT 2000 (4)}) 23... Rfd8 {[%emt 0:00:49]} (23... Rfc8 $19 {Hoping for ...Bc3.} 24. d4 (24. dxe4 $2 Bc3 $19) 24... Bf8) 24. Rd1 {[%emt 0:00:42]} Bf8 {[%emt 0:05:53] A strong pair of Bishops.} 25. Rbb1 {[%emt 0:00:37]} b4 {[%emt 0:02:28]} (25... Qxd2 $19 26. Rxd2 b4) 26. Qe1 {[%emt 0:01:13]} exd3 {[%emt 0:05:20] Black is more active.} 27. Rxd3 {[%emt 0:00:21]} Bf7 {[%emt 0:02:28]} 28. Qd2 {[%emt 0:04:09]} Rxd3 {[%emt 0:00:55]} 29. exd3 {[%emt 0:01:53]} Qa2 {[%emt 0:00:23]} 30. Qxa2 {[%emt 0:01:46]} Bxa2 {[%emt 0:00:02]} 31. Bd5+ {[%emt 0:02:51]} Bxd5 {[%emt 0:00:19]} 32. Nxd5 {[%emt 0:00:01][%mdl 4096] Endgame KRB-KRN} Rd8 {[%emt 0:04:56]} 33. Nf4 {[%emt 0:00:29]} (33. Nxb4 $2 Rb8 34. Kf1 Rxb4 $19) 33... Kf7 {[%emt 0:00:16] Dodges Ne6} 34. h4 {[%emt 0:00:41]} Bd6 {[%emt 0:02:42]} 35. Kg2 {[%emt 0:02:21]} (35. Nh3 $17) 35... Bxf4 $19 {[%emt 0:01:11]} 36. gxf4 {[%emt 0:00:07] KR-KR} Rd4 {[%emt 0:00:04]} ({Inferior is} 36... Rxd3 37. Rxb4 Rd7 38. Rb3 $14) 37. Kf3 $2 {[%emt 0:00:46]} (37. Kg3) 37... Rxd3+ {[%emt 0:00:10]} 38. Ke2 {[%emt 0:00:06]} Rd4 {[%emt 0:00:06]} 39. Ke3 {[%emt 0:00:36]} Re4+ {[%emt 0:00:20]} 40. Kf3 {[%emt 0:00:22]} Ke6 {[%emt 0:00:45]} 41. Rd1 {[%emt 0:31:08]} b3 {[%emt 0:31:51]} 42. Rb1 {[%emt 0:00:42]} Rb4 {[%emt 0:00:00] [#]} 43. Ke3 {[%emt 0:00:00]} Kd5 {[%emt 0:00:00]} (43... b2 $142 44. Kd3 Kd5 (44... Rxf4 $2 45. Rxb2 Rxh4 46. Rb6+ Ke5 47. Ke3 $19) 45. Kc3 Rb6 (45... Rxf4 $2 46. Rxb2 Rf3+ 47. Kb4 $19) 46. Kd3 Rb7 47. f3 Rb3+ 48. Kc2 Kc4 (48... Rxf3 49. Kxb2 Rh3 50. h5 $19) 49. Rg1 b1=R (49... Rxf3 $2 50. h5 $19) 50. Rxb1 Rxb1 (50... Rxf3 51. Rb7 $17) 51. Kxb1 Kd3 52. Kb2 Ke3 53. Kc3 h6 (53... Kxf3 $2 54. Kd4 $19) (53... Kxf4 $2 54. Kd4 $19) 54. Kc4 Kxf3 (54... Kxf4 $2 55. Kd5 $19) 55. Kd5 Kxf4 56. Kd4 g5 57. Kd3 g4 (57... gxh4 {gets mated.} 58. Ke2 Kg3 59. Kd3 h3 60. Kd4 h2 61. Ke5 h1=Q 62. Ke6 f4 63. Kf7 Qd5+ 64. Kf6 f3 65. Kg6 f2 66. Kg7 f1=Q 67. Kh8 Qf8+ 68. Kh7 Qdg8#) 58. Kd2 g3 59. Ke1 Ke3 (59... Kg4 60. Ke2 f4 61. Kf1 f3 62. Ke1 g2 63. Kf2 Kf4 64. h5 Ke4 65. Ke1 g1=Q+ 66. Kd2 f2 67. Kc3 f1=Q 68. Kb4 Qb1+ 69. Kc4 Qd4#) 60. Kf1 Kf3 61. Ke1 g2 62. Kd2 g1=Q (62... g1=R $2 63. Kc3 $19) 63. Kc3 Qc5+ 64. Kb3 Ke3 65. Ka4 Kd3 66. h5 Qb6 67. Ka3 Kc3 68. Ka4 Qb4#) 44. Kd3 {[%emt 0:00:00]} b2 {[%emt 0:00:00] Black mates.} 45. Kc3 {[%emt 0:00:00]} Rb7 {[%emt 0:00:00]} 46. Kd3 {[%emt 0:00:00]} Rb3+ {[%emt 0:00:00]} 47. Kc2 {[%emt 0:00:00]} Kc4 {[%emt 0:00:00]} 48. Kd2 {[%emt 0:00:00]} Rb6 {[%emt 0:00:00]} 49. Kc2 {[%emt 0:00:00]} Rb7 {[%emt 0:00:00]} 50. Kd2 {[%emt 0:00:00]} Kb3 {[%emt 0:00:00] Weighted Error Value: White=0.87/Black=0.27 (precise)   Mistake:       	White=5     	Black=2      Inaccurate:     	White=2     	---        OK:         	White=10    	Black=11     Best:        	---       	Black=5      Strong:       	---       	Black=1} 0-1

[Event "FIDE WSTC Open 50 2025"]
[Site "Prague"]
[Date "2025.02.20"]
[Round "4.25"]
[White "Csiszar, Csaba"]
[Black "Plotkin, Victor"]
[Result "1/2-1/2"]
[Annotator "TA"]
[ECO "D02"]
[WhiteElo "2378"]
[BlackElo "2259"]
[PlyCount "108"]
[EventDate "2025.02.17"]
[EventType "team-tourn"]
[EventCountry "CZE"]
[SourceTitle "playchess.com"]
[Source "ChessBase"]
[SourceQuality "1"]
[TimeControl "40/5400+30:1800+30"]

{[%evp 9,108,10,15,8,20,0,0,0,0,-10,-8,-7,0,-12,-16,-18,0,-6,22,16,16,16,27,-21,8,0,23,0,0,0,0,0,0,-8,0,0,0,0,0,0,0,0,0,0,0,0,0,-3,38,33,35,42,43,28,31,0,0,0,0,0,0,0,11,0,8,8,7,0,3,8,12,0,0,0,0,0,34,33,18,0,28,0,7,0,0,0,0,0,0,0,0,0,0,0,0,0,0,-151,-151,-151,-151]} 1. d4 {[%emt 0:00:04]} d5 {[%emt 0:00:44]} 2. Nf3 {[%emt 0:00:06]} Nf6 {[%emt 0:00:06]} 3. Bf4 {[%emt 0:00:06]} c5 {[%emt 0:00:55]} 4. e3 {[%emt 0:00:06]} Qb6 {[%emt 0:01:16]} 5. Nc3 {[%emt 0:00:58]} Bd7 {[%emt 0:00:32]} 6. dxc5 {[%emt 0:15:00] D02: 1 d4 d5 2 Nf3 sidelines, including 2...Nf6 3 g3 and 2...Nf6 3 Bf4.} Qxc5 {[%emt 0:05:20]} 7. Be2 {[%emt 0:20:57]} e6 {[%emt 0:01:09]} 8. O-O {[%emt 0:01:55] The position is equal.} Be7 {[%emt 0:04:53]} 9. a4 $146 {[%emt 0:09:17]} ({Predecessor:} 9. Ne5 O-O 10. a3 Rc8 11. Bf3 Qb6 12. Rb1 Bb5 13. Nxb5 Qxb5 14. Re1 Nc6 15. Nxc6 Qxc6 {0-1 Escudero Donoso,F (2013)-Olhovik,A (2282) Titled Tuesday intern op 06th Aug Early blitz 2024 (4)}) 9... O-O {[%emt 0:10:55]} 10. Ne5 {[%emt 0:01:53]} Rc8 {[%emt 0:03:12]} 11. Bd3 {[%emt 0:04:47]} Be8 {[%emt 0:03:29]} 12. Nb5 {[%emt 0:02:15]} Nc6 {[%emt 0:05:19]} 13. c3 {[%emt 0:00:35]} Nxe5 {[%emt 0:02:33]} 14. Bxe5 {[%emt 0:00:04]} Qc6 {[%emt 0:15:05]} 15. Nd4 {[%emt 0:06:52]} Qb6 {[%emt 0:01:59]} 16. a5 {[%emt 0:04:57]} (16. Qe2 $142) 16... Qd8 {[%emt 0:02:46]} 17. Qf3 {[%emt 0:01:18]} a6 {[%emt 0:05:46]} 18. Qg3 {[%emt 0:00:57]} g6 {[%emt 0:01:18]} 19. Rfd1 Nd7 {[%emt 0:02:52] [#] aiming for ...Nxe5.} 20. Bd6 {[%emt 0:02:33]} Bh4 {[%emt 0:03:04]} 21. Qh3 {[%emt 0:01:24]} Nc5 {[%emt 0:01:45]} 22. Be5 {[%emt 0:08:22] Repels Bxf2+} Nxd3 {[%emt 0:00:59]} 23. Rxd3 {[%emt 0:00:05]} Bd7 {[%emt 0:06:20]} 24. Re1 {[%emt 0:11:26]} Bf6 {[%emt 0:00:59]} 25. Bxf6 {[%emt 0:01:04]} Qxf6 {[%emt 0:00:04]} 26. e4 {[%emt 0:00:11]} dxe4 {[%emt 0:01:35]} 27. Rxe4 {[%emt 0:00:11]} Rc5 {[%emt 0:02:28]} 28. b4 $1 {[%emt 0:01:53]} Rh5 {[%emt 0:01:05]} 29. Qf3 {[%emt 0:02:43]} Qxf3 {[%emt 0:01:14]} 30. Nxf3 {[%emt 0:00:05]} Bc6 {[%emt 0:00:52]} 31. Red4 {[%emt 0:01:09]} Kf8 {[%emt 0:06:58]} 32. c4 {[%emt 0:01:35]} e5 {[%emt 0:01:08]} 33. Rd8+ {[%emt 0:00:21]} Rxd8 {[%emt 0:00:01]} 34. Rxd8+ $11 {[%emt 0:00:04][%mdl 4096] Endgame KRB-KRN} Ke7 {[%emt 0:00:09]} 35. Rb8 {[%emt 0:00:08][%cal Ob4b5] [#]} Kd6 {[%emt 0:01:14]} 36. Rd8+ {[%emt 0:01:59]} (36. g4 Rh3 37. Ng5 Rb3) 36... Kc7 {[%emt 0:00:58]} 37. Rf8 {[%emt 0:00:04] Black must now prevent g4.} Rf5 {[%emt 0:00:32]} 38. Nd2 {[%emt 0:00:17]} Rf4 {[%emt 0:01:18]} 39. Kf1 {[%emt 0:00:08]} Kd6 {[%emt 0:02:55]} 40. f3 {[%emt 0:01:24]} Ke7 {[%emt 0:00:47]} 41. Rb8 {[%emt 0:30:08]} Rd4 {[%emt 0:31:12]} 42. Ke2 {[%emt 0:00:15]} Rd8 {[%emt 0:00:00]} 43. Rxd8 {[%emt 0:00:00]} Kxd8 $14 {[%emt 0:00:00] KB-KN} 44. Ke3 {[%emt 0:00:00]} Ke7 {[%emt 0:00:00]} 45. h4 {[%emt 0:00:00]} h6 {[%emt 0:00:00]} 46. g3 {[%emt 0:00:00]} f5 {[%emt 0:00:00]} 47. f4 {[%emt 0:00:00]} Kf6 {[%emt 0:00:00]} 48. Nb3 {[%emt 0:00:00]} g5 {[%emt 0:00:00]} 49. hxg5+ {[%emt 0:00:00]} hxg5 {[%emt 0:00:00]} 50. Nc5 {[%emt 0:00:00]} exf4+ {[%emt 0:00:00]} 51. gxf4 {[%emt 0:00:00]} g4 {[%emt 0:00:00]} 52. Kf2 {[%emt 0:00:00]} Ke7 {[%emt 0:00:00]} 53. b5 $2 {[%emt 0:00:00]} axb5 $17 {[%emt 0:00:00]} 54. cxb5 {[%emt 0:00:00]} Bxb5 {[%emt 0:00:00] Weighted Error Value: White=0.11 (very precise) /Black=0.06 (flawless)   Mistake:       	White=2     	---        Inaccurate:     	White=2     	Black=5      OK:         	White=16    	Black=25     Best:        	White=2     	Black=4      Strong:       	White=1     	---} 1/2-1/2